[Event "POL-chT 2nd League Juniors 2020"]
[Site "Sypniewo"]
[Date "2020.10.28"]
[Round "7.2"]
[White "Topola, Rafal"]
[Black "Niemier, Hubert"]
[Result "1/2-1/2"]
[ECO "B15"]
[WhiteElo "1827"]
[BlackElo "1771"]
[Annotator "NA"]
[PlyCount "90"]
[EventDate "2020.10.23"]
[EventType "team-tourn"]
[EventCountry "POL"]
[SourceTitle "playchess.com"]
[Source "ChessBase"]
[SourceQuality "1"]
[TimeControl "5400+30"]

1. e4 {[%emt 0:00:00]} c6 {[%emt 0:00:00]} 2. d4 {[%emt 0:00:00]} d5 {[%emt 0:00:00]} 3. Nc3 {[%emt 0:00:00]} dxe4 {[%emt 0:00:00]} 4. Nxe4 {[%emt 0:00:00]} Nf6 {[%emt 0:00:00]} 5. Nxf6+ {[%emt 0:00:00]} exf6 {[%emt 0:00:00]} 6. c3 {[%emt 0:00:03]} Bd6 {[%emt 0:00:00]} 7. Bd3 {[%emt 0:00:04]} O-O {[%emt 0:00:00]} 8. Qc2 {[%emt 0:00:06]} Re8+ {[%emt 0:00:00]} 9. Ne2 {[%emt 0:00:06]} h5 {[%emt 0:00:00]} 10. O-O {[%emt 0:00:13]} Be6 {[%emt 0:00:27]} 11. Bf4 {[%emt 0:01:35]} Qc7 {[%emt 0:02:33]} 12. Bxd6 {[%emt 0:04:54]} Qxd6 {[%emt 0:00:07]} 13. Ng3 {[%emt 0:02:18]} h4 {[%emt 0:00:07]} 14. Ne4 {[%emt 0:00:44]} Qe7 {[%emt 0:00:46]} 15. h3 {[%emt 0:02:33]} Nd7 {[%emt 0:02:27]} 16. Rfe1 {[%emt 0:00:48]} c5 {[%emt 0:05:49]} 17. Nxc5 {[%emt 0:01:47]} Nxc5 {[%emt 0:03:29]} 18. dxc5 {[%emt 0:00:02]} Qxc5 {[%emt 0:00:20]} 19. Qa4 {[%emt 0:06:30]} Qg5 {[%emt 0:04:44]} 20. Rad1 {[%emt 0:04:26]} Red8 {[%emt 0:04:17]} 21. Kf1 {[%emt 0:01:27]} Bd5 {[%emt 0:00:40]} 22. Be4 {[%emt 0:05:27]} Bxe4 {[%emt 0:00:43]} 23. Qxe4 {[%emt 0:00:06]} Rxd1 {[%emt 0:01:02]} 24. Rxd1 {[%emt 0:00:09]} Qb5+ {[%emt 0:00:22]} 25. Qe2 {[%emt 0:00:02]} Qc6 {[%emt 0:02:23]} 26. Rd4 {[%emt 0:12:42]} Re8 {[%emt 0:01:34]} 27. Qc4 {[%emt 0:00:14]} Qxc4+ {[%emt 0:13:40]} 28. Rxc4 {[%emt 0:00:06]} g5 {[%emt 0:00:03]} 29. Rc7 {[%emt 0:00:05]} Rb8 {[%emt 0:00:06]} 30. Ke2 {[%emt 0:00:04]} Kg7 {[%emt 0:00:07]} 31. b4 {[%emt 0:03:35]} f5 {[%emt 0:01:03]} 32. c4 {[%emt 0:00:54]} Kf6 {[%emt 0:00:17]} 33. b5 {[%emt 0:00:39]} Ke6 {[%emt 0:01:01]} 34. c5 {[%emt 0:00:48]} (34. Kd3 $142) 34... f6 {[%emt 0:00:56] [#]} 35. Kd3 $1 {[%emt 0:04:49]} Kd5 {[%emt 0:03:10]} 36. a4 {[%emt 0:00:37]} a6 {[%emt 0:08:43] [#]} 37. b6 $11 {[%emt 0:01:45]} (37. Kc3 $1 $18) 37... a5 {[%emt 0:03:02]} 38. Kc3 {[%emt 0:03:59]} f4 {[%emt 0:03:40]} 39. Kd3 {[%emt 0:03:34]} Rd8 {[%emt 0:02:10]} 40. Kc3 {[%emt 0:02:02]} Rb8 {[%emt 0:04:06]} 41. Rf7 {[%emt 0:15:27]} Kxc5 {[%emt 0:00:14]} 42. Rxf6 {[%emt 0:00:05]} Rd8 {[%emt 0:00:20]} 43. f3 {[%emt 0:00:37]} Rd6 {[%emt 0:01:28]} 44. Rf5+ {[%emt 0:00:50]} Rd5 {[%emt 0:00:14]} 45. Rf6 {[%emt 0:00:19]} Rd6 {[%emt 0:03:30]} 1/2-1/2

[Event "POL-chT 2nd League Juniors 2020"]
[Site "Sypniewo"]
[Date "2020.10.28"]
[Round "7.3"]
[White "Trzebinski, Patryk"]
[Black "Maj, Samuel"]
[Result "0-1"]
[ECO "B40"]
[WhiteElo "1837"]
[BlackElo "1305"]
[Annotator "NA"]
[PlyCount "76"]
[EventDate "2020.10.23"]
[EventType "team-tourn"]
[EventCountry "POL"]
[SourceTitle "playchess.com"]
[Source "ChessBase"]
[SourceQuality "1"]
[TimeControl "5400+30"]

1. e4 {[%emt 0:00:00]} c5 {[%emt 0:00:00]} 2. Nf3 {[%emt 0:00:00]} e6 {[%emt 0:00:00]} 3. d4 {[%emt 0:00:00]} cxd4 {[%emt 0:00:00]} 4. Nxd4 {[%emt 0:00:00]} Nf6 {[%emt 0:00:00]} 5. Nc3 {[%emt 0:00:32]} Nc6 {[%emt 0:00:00]} 6. Be3 {[%emt 0:01:36]} Bb4 {[%emt 0:00:02]} 7. Bd3 {[%emt 0:01:54]} d5 {[%emt 0:00:16]} 8. Nxc6 {[%emt 0:00:12]} bxc6 {[%emt 0:00:13]} 9. e5 {[%emt 0:03:05]} Nd7 {[%emt 0:00:23]} 10. Qg4 {[%emt 0:01:21]} Bf8 {[%emt 0:01:24]} 11. f4 {[%emt 0:02:25]} g6 {[%emt 0:03:45]} 12. h4 {[%emt 0:01:50]} h5 {[%emt 0:02:12]} 13. Qf3 {[%emt 0:00:34]} Nc5 {[%emt 0:03:06]} 14. O-O-O {[%emt 0:02:39]} Nxd3+ {[%emt 0:02:36]} 15. Rxd3 {[%emt 0:00:36]} Be7 {[%emt 0:01:26]} 16. g4 {[%emt 0:01:36]} Ba6 {[%emt 0:07:33]} 17. Rd2 {[%emt 0:01:09]} Qc7 {[%emt 0:02:38]} 18. f5 {[%emt 0:15:57]} hxg4 {[%emt 0:05:16]} 19. Qxg4 {[%emt 0:00:04]} gxf5 {[%emt 0:14:09]} 20. Qa4 {[%emt 0:00:12]} Bc8 {[%emt 0:01:56]} 21. h5 {[%emt 0:02:39]} Bd7 {[%emt 0:00:53]} 22. h6 {[%emt 0:11:11]} c5 {[%emt 0:03:04]} 23. Qf4 {[%emt 0:05:58]} d4 {[%emt 0:04:20]} 24. h7 {[%emt 0:03:14]} dxe3 {[%emt 0:02:03]} 25. Rg2 {[%emt 0:00:31]} O-O-O {[%emt 0:01:06]} 26. Rg7 {[%emt 0:01:11]} Bf6 {[%emt 0:02:39]} 27. Rxf7 {[%emt 0:02:36]} Bxe5 {[%emt 0:00:28]} 28. Qc4 {[%emt 0:02:00]} Rhf8 {[%emt 0:06:41]} 29. Rxf8 {[%emt 0:02:05]} Rxf8 {[%emt 0:00:02]} 30. Qh4 {[%emt 0:02:12]} Bc6 {[%emt 0:01:18]} 31. Rg1 {[%emt 0:01:30]} Rh8 {[%emt 0:02:24]} 32. Rg8+ {[%emt 0:01:42]} Kb7 {[%emt 0:00:09]} 33. Rxh8 {[%emt 0:00:13]} Bxh8 {[%emt 0:00:01]} 34. Qh6 {[%emt 0:00:19]} f4 {[%emt 0:03:36]} 35. Qf8 {[%emt 0:02:26]} Qxh7 {[%emt 0:00:29]} 36. Qxf4 {[%emt 0:00:09]} Bxc3 {[%emt 0:00:22]} 37. bxc3 {[%emt 0:00:10]} e2 {[%emt 0:00:35]} 38. Kd2 {[%emt 0:00:07]} Qe4 {[%emt 0:01:26]} 0-1

[Event "POL-chT 2nd League Juniors 2020"]
[Site "Sypniewo"]
[Date "2020.10.28"]
[Round "7.3"]
[White "Skrzypinski, Jan"]
[Black "Nowak, Filip"]
[Result "1-0"]
[ECO "C54"]
[WhiteElo "1418"]
[BlackElo "1871"]
[Annotator "NA"]
[PlyCount "55"]
[EventDate "2020.10.23"]
[EventType "team-tourn"]
[EventCountry "POL"]
[SourceTitle "playchess.com"]
[Source "ChessBase"]
[SourceQuality "1"]
[TimeControl "5400+30"]

1. e4 {[%emt 0:00:00]} e5 {[%emt 0:00:00]} 2. Nf3 {[%emt 0:00:00]} Nc6 {[%emt 0:00:00]} 3. Bc4 {[%emt 0:00:01]} Bc5 {[%emt 0:00:00]} 4. c3 {[%emt 0:00:06]} Nf6 {[%emt 0:00:00]} 5. d3 {[%emt 0:00:05]} d6 {[%emt 0:00:02]} 6. O-O {[%emt 0:00:46]} a6 {[%emt 0:00:14]} 7. Bb3 {[%emt 0:00:29]} O-O {[%emt 0:00:54]} 8. Nbd2 {[%emt 0:01:35]} h6 {[%emt 0:01:51]} 9. h3 {[%emt 0:00:13]} Re8 {[%emt 0:00:51]} 10. Re1 {[%emt 0:00:18]} Be6 {[%emt 0:08:18]} 11. Bc2 {[%emt 0:03:10]} d5 {[%emt 0:06:55]} 12. Nf1 {[%emt 0:01:20]} Qd7 {[%emt 0:06:14]} 13. Be3 {[%emt 0:05:22]} Bxe3 {[%emt 0:02:15]} 14. Nxe3 {[%emt 0:00:22]} Rad8 {[%emt 0:01:27]} 15. Nh4 {[%emt 0:03:45]} g6 {[%emt 0:05:12]} 16. Qf3 {[%emt 0:02:00]} Kg7 {[%emt 0:04:46]} 17. Rad1 {[%emt 0:03:22]} b5 {[%emt 0:15:43]} 18. exd5 {[%emt 0:13:33]} Nxd5 {[%emt 0:03:03]} 19. Nxd5 {[%emt 0:01:06]} Bxd5 {[%emt 0:01:24]} 20. Qg3 {[%emt 0:00:12]} b4 {[%emt 0:05:36]} (20... Kf8 $11 {keeps the balance.}) 21. c4 {[%emt 0:02:39]} Be6 {[%emt 0:00:29]} 22. Ba4 {[%emt 0:00:21]} g5 $2 {[%emt 0:05:59]} (22... Qd6 $16 {was called for.}) 23. Nf3 $18 {[%emt 0:03:44]} f6 {[%emt 0:12:12]} 24. d4 {[%emt 0:04:23]} e4 {[%emt 0:12:20]} 25. d5 {[%emt 0:00:28]} exf3 {[%emt 0:00:46]} 26. Bxc6 {[%emt 0:00:07]} Qe7 {[%emt 0:01:10]} 27. Bxe8 {[%emt 0:00:10]} Qxe8 {[%emt 0:00:21]} 28. Qxf3 {[%emt 0:00:19]} 1-0

[Event "POL-chT 2nd League Juniors 2020"]
[Site "Sypniewo"]
[Date "2020.10.28"]
[Round "7.4"]
[White "Filipska, Maja"]
[Black "Uliasz, Katarzyna"]
[Result "*"]
[ECO "B13"]
[WhiteElo "1849"]
[BlackElo "1495"]
[Annotator "NA"]
[PlyCount "23"]
[EventDate "2020.10.23"]
[EventType "team-tourn"]
[EventCountry "POL"]
[SourceTitle "playchess.com"]
[Source "ChessBase"]
[SourceQuality "1"]
[TimeControl "5400+30"]

1. e4 c6 {[%emt 0:00:00]} 2. d4 {[%emt 0:00:00]} d5 {[%emt 0:00:02]} 3. exd5 {[%emt 0:00:00]} cxd5 {[%emt 0:00:06]} 4. Bd3 {[%emt 0:00:04]} Nf6 {[%emt 0:00:16]} 5. Bf4 {[%emt 0:00:27]} Nc6 {[%emt 0:00:27]} 6. c3 {[%emt 0:00:07]} Bg4 {[%emt 0:00:14]} 7. Qb3 {[%emt 0:00:46]} Qd7 {[%emt 0:00:25]} 8. Nd2 {[%emt 0:01:04]} e6 {[%emt 0:01:30]} 9. Ngf3 {[%emt 0:00:49]} a6 {[%emt 0:06:03]} 10. O-O {[%emt 0:00:37]} Be7 {[%emt 0:01:28]} 11. h3 {[%emt 0:00:55]} Bh5 {[%emt 0:00:09]} 12. Qc2 {[%emt 0:02:09]} *

[Event "POL-chT 2nd League Juniors 2020"]
[Site "Sypniewo"]
[Date "2020.10.28"]
[Round "7.4"]
[White "Zimny, Jakub"]
[Black "Kaczmarek, Jan"]
[Result "1/2-1/2"]
[ECO "B32"]
[WhiteElo "1569"]
[BlackElo "1229"]
[Annotator "NA"]
[PlyCount "60"]
[EventDate "2020.10.23"]
[EventType "team-tourn"]
[EventCountry "POL"]
[SourceTitle "playchess.com"]
[Source "ChessBase"]
[SourceQuality "1"]
[TimeControl "5400+30"]

1. e4 {[%emt 0:00:00]} c5 {[%emt 0:00:00]} 2. Nf3 {[%emt 0:00:00]} Nc6 {[%emt 0:00:00]} 3. d4 cxd4 {[%emt 0:00:00]} 4. Nxd4 {[%emt 0:00:03]} e5 {[%emt 0:00:46]} 5. Nb5 {[%emt 0:00:13]} a6 {[%emt 0:00:33]} 6. Nd6+ {[%emt 0:00:17]} Bxd6 {[%emt 0:00:08]} 7. Qxd6 {[%emt 0:00:16]} Qe7 {[%emt 0:00:39]} 8. Qd1 {[%emt 0:03:09]} Nf6 {[%emt 0:00:23]} 9. Nc3 {[%emt 0:00:10]} d6 {[%emt 0:00:54]} 10. Bg5 {[%emt 0:01:30]} Be6 {[%emt 0:00:25]} 11. Be2 {[%emt 0:01:40]} O-O {[%emt 0:01:04]} 12. Qd2 {[%emt 0:03:11]} Rac8 {[%emt 0:04:17]} 13. O-O-O {[%emt 0:01:59]} Nd4 {[%emt 0:04:53]} 14. f3 {[%emt 0:01:28]} d5 {[%emt 0:14:08]} 15. Bxf6 {[%emt 0:09:41]} gxf6 {[%emt 0:01:02]} 16. exd5 {[%emt 0:00:36]} Rxc3 {[%emt 0:03:26]} 17. bxc3 Qa3+ 18. Kb1 {[%emt 0:00:45]} Bxd5 {[%emt 0:01:17]} 19. c4 Rc8 20. cxd5 {[%emt 0:02:04]} Rxc2 {[%emt 0:06:52]} 21. Qxc2 {[%emt 0:00:16]} Nxc2 {[%emt 0:00:03]} 22. Kxc2 Qxa2+ {[%emt 0:00:36]} 23. Kd3 {[%emt 0:01:07]} Qxd5+ {[%emt 0:00:28]} 24. Kc3 {[%emt 0:01:09]} Qa5+ {[%emt 0:03:05]} 25. Kd3 {[%emt 0:02:24]} Qb5+ {[%emt 0:01:49]} 26. Ke3 {[%emt 0:01:16]} Qc5+ {[%emt 0:00:30]} 27. Kd2 {[%emt 0:02:24]} Qb4+ {[%emt 0:02:14]} 28. Kc2 {[%emt 0:00:54]} Qa4+ {[%emt 0:01:01]} 29. Kd2 {[%emt 0:01:18]} Qb4+ {[%emt 0:00:09]} 30. Kc2 {[%emt 0:00:11]} Qa4+ 1/2-1/2

[Event "POL-chT 2nd League Juniors 2020"]
[Site "Sypniewo"]
[Date "2020.10.28"]
[Round "7.5"]
[White "Filipska, Maja"]
[Black "Uliasz, Katarzyna"]
[Result "1-0"]
[ECO "B40"]
[WhiteElo "1849"]
[BlackElo "1495"]
[Annotator "NA"]
[PlyCount "89"]
[EventDate "2020.10.23"]
[EventType "team-tourn"]
[EventCountry "POL"]
[SourceTitle "playchess.com"]
[Source "ChessBase"]
[SourceQuality "1"]
[TimeControl "5400+30"]

1. e4 {[%emt 0:00:00]} c5 {[%emt 0:00:00]} 2. Nf3 {[%emt 0:00:00]} e6 {[%emt 0:00:00]} 3. d4 {[%emt 0:00:00]} cxd4 {[%emt 0:00:00]} 4. Nxd4 {[%emt 0:00:00]} Nf6 {[%emt 0:00:00]} 5. Bd3 {[%emt 0:00:57]} Nc6 {[%emt 0:01:14]} 6. Be3 {[%emt 0:00:52]} d5 {[%emt 0:02:10]} 7. exd5 {[%emt 0:11:30]} Nxd5 {[%emt 0:02:38]} 8. Nxc6 {[%emt 0:03:20]} bxc6 {[%emt 0:02:37]} 9. Be4 {[%emt 0:06:50]} Qc7 {[%emt 0:06:02]} 10. Qf3 {[%emt 0:05:50]} f5 {[%emt 0:08:03]} 11. Bd3 {[%emt 0:09:14]} Rb8 {[%emt 0:10:46]} 12. O-O {[%emt 0:06:43]} Bd6 {[%emt 0:01:30]} 13. Qh5+ {[%emt 0:09:43]} g6 {[%emt 0:00:49]} 14. Qh3 {[%emt 0:04:26]} Be5 {[%emt 0:03:03]} 15. Nd2 {[%emt 0:05:20]} Nxe3 {[%emt 0:06:06]} 16. Qxe3 {[%emt 0:00:52]} Bxh2+ {[%emt 0:00:29]} 17. Kh1 {[%emt 0:00:02]} Bf4 {[%emt 0:02:06]} 18. Qe2 {[%emt 0:01:36]} Bxd2 {[%emt 0:01:55]} 19. Qxd2 {[%emt 0:00:02]} O-O {[%emt 0:07:39]} 20. Bc4 {[%emt 0:04:01]} c5 {[%emt 0:05:26]} 21. Rfe1 {[%emt 0:02:28]} Rd8 {[%emt 0:06:36]} 22. Qg5 {[%emt 0:05:43]} Re8 {[%emt 0:03:29]} 23. Re3 {[%emt 0:03:29]} Qg7 {[%emt 0:02:16]} 24. Rae1 {[%emt 0:11:17]} Rb6 {[%emt 0:11:02]} 25. Re5 {[%emt 0:01:25]} h6 {[%emt 0:01:09]} 26. Qe3 {[%emt 0:00:25]} Bd7 {[%emt 0:05:58]} 27. b3 {[%emt 0:01:10]} Rc6 {[%emt 0:03:30]} 28. Rxc5 {[%emt 0:01:35]} Rxc5 {[%emt 0:00:04]} ({Better is} 28... f4 $1 $14 29. Qe5 Qxe5 30. Rcxe5 Kg7) 29. Qxc5 {[%emt 0:00:01]} Bc8 {[%emt 0:01:08]} 30. Qd6 {[%emt 0:01:36]} Qf6 {[%emt 0:00:48]} 31. a4 {[%emt 0:01:11]} Kf7 {[%emt 0:00:56]} 32. Qc7+ {[%emt 0:00:27]} Qe7 {[%emt 0:00:24]} 33. Qe5 {[%emt 0:00:44]} Bb7 {[%emt 0:01:11]} 34. Rd1 {[%emt 0:00:27]} h5 {[%emt 0:01:40]} 35. Qf4 {[%emt 0:00:50]} g5 $2 {[%emt 0:00:16]} ({Better is} 35... Rd8 $14 36. Bxe6+ Kxe6 37. Re1+ Be4) 36. Qxf5+ {[%emt 0:00:13]} Kg7 {[%emt 0:00:38]} 37. Qe5+ {[%emt 0:00:11]} Kf7 {[%emt 0:00:56]} 38. Rd6 {[%emt 0:01:03]} Bc8 $2 {[%emt 0:01:03]} (38... Qf6 39. Rd7+ Re7 40. Rxe7+ Qxe7) 39. Rc6 {[%emt 0:00:31]} Rd8 {[%emt 0:01:12] [#]} 40. Rc7 $1 {[%emt 0:00:35]} Bd7 {[%emt 0:00:25]} 41. Bb5 {[%emt 0:00:58]} Kg6 {[%emt 0:00:48]} 42. Qd4 {[%emt 0:01:04]} e5 {[%emt 0:01:43]} 43. Rxd7 {[%emt 0:01:26]} Rxd7 {[%emt 0:00:42]} 44. Qxd7 {[%emt 0:00:06]} Qf8 $18 {[%emt 0:00:23]} 45. Qe8+ {[%emt 0:00:19]} 1-0

[Event "POL-chT 2nd League Juniors 2020"]
[Site "Sypniewo"]
[Date "2020.10.28"]
[Round "7.5"]
[White "Niemier, Martyna"]
[Black "Jedrzejko, Martyna"]
[Result "1/2-1/2"]
[ECO "A11"]
[WhiteElo "1235"]
[BlackElo "1618"]
[Annotator "NA"]
[PlyCount "71"]
[EventDate "2020.10.23"]
[EventType "team-tourn"]
[EventCountry "POL"]
[SourceTitle "playchess.com"]
[Source "ChessBase"]
[SourceQuality "1"]
[TimeControl "5400+30"]

1. c4 {[%emt 0:00:00]} c6 {[%emt 0:00:00]} 2. Nc3 {[%emt 0:00:00]} d5 {[%emt 0:00:16]} 3. cxd5 {[%emt 0:01:04]} cxd5 {[%emt 0:00:15]} 4. d4 {[%emt 0:00:24]} Nf6 {[%emt 0:01:01]} 5. Nf3 {[%emt 0:00:27]} Nc6 {[%emt 0:03:19]} 6. Bf4 {[%emt 0:01:35]} a6 {[%emt 0:02:19]} 7. e3 {[%emt 0:00:45]} Bg4 {[%emt 0:04:17]} 8. h3 {[%emt 0:03:25]} Bxf3 {[%emt 0:01:14]} 9. Qxf3 {[%emt 0:00:29]} e6 {[%emt 0:00:41]} 10. a3 {[%emt 0:02:44]} Bd6 {[%emt 0:04:18]} 11. Bxd6 {[%emt 0:01:56]} Qxd6 {[%emt 0:00:07]} 12. Bd3 {[%emt 0:00:22]} b5 {[%emt 0:02:07]} 13. O-O {[%emt 0:07:03]} O-O {[%emt 0:01:08]} 14. Ne2 {[%emt 0:13:32]} Na5 {[%emt 0:04:49]} 15. b4 {[%emt 0:04:53]} Nc4 {[%emt 0:00:26]} 16. Qf4 {[%emt 0:09:47]} Qxf4 {[%emt 0:01:54]} 17. Nxf4 {[%emt 0:00:14]} Rfc8 {[%emt 0:01:02]} 18. Ra2 {[%emt 0:08:51]} Rc7 {[%emt 0:06:23]} 19. Rc1 {[%emt 0:04:59]} Rac8 {[%emt 0:00:32]} 20. Rac2 {[%emt 0:00:18]} Ne8 {[%emt 0:01:17]} 21. Bxc4 {[%emt 0:00:46]} dxc4 {[%emt 0:00:45]} 22. f3 {[%emt 0:03:12]} Nf6 {[%emt 0:03:36]} 23. Kf2 {[%emt 0:01:39]} Kf8 {[%emt 0:01:31]} 24. Nd3 {[%emt 0:05:00]} Nd7 {[%emt 0:01:24]} 25. Nc5 {[%emt 0:03:39]} Nxc5 {[%emt 0:02:34]} 26. dxc5 {[%emt 0:00:18]} Rd7 {[%emt 0:01:03]} 27. Ke2 {[%emt 0:03:30]} Rcd8 {[%emt 0:02:52]} 28. Ra1 {[%emt 0:04:17]} Rd3 {[%emt 0:03:08]} 29. Raa2 {[%emt 0:00:11]} Ke7 {[%emt 0:09:50]} 30. e4 {[%emt 0:04:55]} e5 {[%emt 0:02:12]} 31. h4 {[%emt 0:03:02]} f6 {[%emt 0:10:07]} 32. h5 {[%emt 0:02:33]} g6 {[%emt 0:01:17]} 33. hxg6 {[%emt 0:00:21]} hxg6 {[%emt 0:03:51]} 34. Rd2 {[%emt 0:03:38]} Rxd2+ {[%emt 0:02:08]} 35. Rxd2 {[%emt 0:00:06]} Rxd2+ {[%emt 0:01:33]} 36. Kxd2 {[%emt 0:00:04]} 1/2-1/2

[Event "POL-chT 2nd League Juniors 2020"]
[Site "Sypniewo"]
[Date "2020.10.28"]
[Round "7.6"]
[White "Gornisiewicz, Zuzanna"]
[Black "Konkol, Sandra"]
[Result "0-1"]
[ECO "B13"]
[WhiteElo "1023"]
[BlackElo "1235"]
[Annotator "NA"]
[PlyCount "58"]
[EventDate "2020.10.23"]
[EventType "team-tourn"]
[EventCountry "POL"]
[SourceTitle "playchess.com"]
[Source "ChessBase"]
[SourceQuality "1"]
[TimeControl "5400+30"]

1. e4 {[%emt 0:00:00]} c6 {[%emt 0:00:00]} 2. d4 {[%emt 0:00:00]} d5 {[%emt 0:00:00]} 3. exd5 {[%emt 0:00:00]} cxd5 {[%emt 0:00:09]} 4. Bd3 {[%emt 0:00:11]} Nc6 {[%emt 0:00:21]} 5. c3 {[%emt 0:00:13]} Qc7 {[%emt 0:00:10]} 6. Be3 {[%emt 0:03:49]} Nf6 {[%emt 0:00:28]} 7. Nd2 {[%emt 0:00:51]} e6 {[%emt 0:00:31]} 8. Ngf3 {[%emt 0:00:12]} Bd7 {[%emt 0:04:36]} 9. O-O {[%emt 0:00:38]} Bd6 {[%emt 0:03:15]} 10. Bg5 {[%emt 0:02:05]} h6 {[%emt 0:05:23]} 11. Bh4 {[%emt 0:03:21]} Ng4 {[%emt 0:15:31]} 12. Bg3 {[%emt 0:03:28]} Bxg3 {[%emt 0:00:25]} 13. hxg3 {[%emt 0:01:11]} h5 {[%emt 0:03:21]} 14. c4 {[%emt 0:03:43]} h4 {[%emt 0:04:55]} 15. gxh4 {[%emt 0:05:27]} dxc4 {[%emt 0:03:04]} 16. Bxc4 {[%emt 0:02:38]} Nxd4 {[%emt 0:01:44]} 17. Rc1 {[%emt 0:03:01]} Bc6 {[%emt 0:02:54]} 18. Be2 {[%emt 0:01:34]} Rd8 {[%emt 0:01:30]} 19. g3 {[%emt 0:03:37]} Ne3 {[%emt 0:11:28]} 20. Qe1 {[%emt 0:05:07]} Ndc2 {[%emt 0:07:25]} 21. Rxc2 {[%emt 0:00:52]} Nxc2 {[%emt 0:00:09]} 22. Qc1 {[%emt 0:00:38]} Nd4 {[%emt 0:07:37]} 23. Nxd4 {[%emt 0:02:27]} Rxd4 {[%emt 0:00:10]} 24. Qc3 {[%emt 0:00:14]} Rdxh4 {[%emt 0:00:30]} 25. gxh4 {[%emt 0:01:20]} Rxh4 {[%emt 0:00:23]} 26. Nf3 {[%emt 0:00:52]} Rg4+ {[%emt 0:00:27]} 27. Kh1 {[%emt 0:00:43]} Bxf3+ {[%emt 0:00:11]} 28. Qxf3 {[%emt 0:00:39]} Rh4+ {[%emt 0:00:05]} 29. Kg1 {[%emt 0:02:02]} Qh2# 0-1

[Event "POL-chT 2nd League Juniors 2020"]
[Site "Sypniewo"]
[Date "2020.10.28"]
[Round "7.7"]
[White "Gardian, Adam"]
[Black "Posluszny, Tomasz"]
[Result "1-0"]
[ECO "B56"]
[WhiteElo "1859"]
[BlackElo "2050"]
[Annotator "ChessBase"]
[PlyCount "33"]
[EventDate "2020.10.23"]
[EventType "team-tourn"]
[EventCountry "POL"]
[SourceTitle "playchess.com"]
[Source "ChessBase"]
[SourceQuality "1"]
[TimeControl "5400+30"]

1. e4 {[%emt 0:00:00]} c5 {[%emt 0:00:00]} 2. Nf3 {[%emt 0:00:00]} d6 {[%emt 0:00:06]} 3. d4 {[%emt 0:00:02]} cxd4 {[%emt 0:00:05]} 4. Nxd4 {[%emt 0:00:03]} Nf6 {[%emt 0:00:26]} 5. Nc3 {[%emt 0:00:40]} Bd7 {[%emt 0:00:19]} 6. Bg5 {[%emt 0:04:59]} e6 {[%emt 0:00:53]} 7. f4 {[%emt 0:03:08]} Be7 {[%emt 0:07:54]} 8. Qf3 {[%emt 0:07:25]} h6 {[%emt 0:09:43]} 9. Bxf6 {[%emt 0:10:58]} Bxf6 {[%emt 0:03:00]} 10. O-O-O {[%emt 0:00:33]} a6 {[%emt 0:29:08]} 11. e5 {[%emt 0:03:49]} dxe5 {[%emt 0:00:50]} 12. fxe5 {[%emt 0:00:26]} Bxe5 {[%emt 0:09:02]} 13. Qxb7 {[%emt 0:07:06]} Qc7 {[%emt 0:04:44]} 14. Qxa8 {[%emt 0:03:10]} Bxd4 {[%emt 0:00:07]} 15. Rxd4 {[%emt 0:00:03]} Bc6 {[%emt 0:04:46]} 16. Rc4 {[%emt 0:01:55]} O-O {[%emt 0:08:10]} 17. Bd3 {[%emt 0:03:48]} 1-0

[Event "POL-chT 2nd League Juniors 2020"]
[Site "Sypniewo"]
[Date "2020.10.28"]
[Round "7.7"]
[White "Ursnik, Patryk"]
[Black "Krawczyk, Wojciech"]
[Result "0-1"]
[ECO "B02"]
[WhiteElo "1645"]
[BlackElo "2036"]
[Annotator "ChessBase"]
[PlyCount "84"]
[EventDate "2020.10.23"]
[EventType "team-tourn"]
[EventCountry "POL"]
[SourceTitle "playchess.com"]
[Source "ChessBase"]
[SourceQuality "1"]
[TimeControl "5400+30"]

1. e4 {[%emt 0:00:00]} Nf6 {[%emt 0:00:00]} 2. Nc3 {[%emt 0:00:00]} d5 {[%emt 0:00:00]} 3. exd5 {[%emt 0:00:06]} Nxd5 {[%emt 0:00:00]} 4. Bc4 {[%emt 0:00:09]} c6 {[%emt 0:00:11]} 5. Qf3 {[%emt 0:00:18]} e6 {[%emt 0:00:21]} 6. Nge2 {[%emt 0:00:39]} Bd6 {[%emt 0:01:24]} 7. d4 {[%emt 0:00:26]} Qf6 {[%emt 0:19:15]} 8. Ne4 {[%emt 0:15:11]} Bb4+ {[%emt 0:03:04]} 9. c3 {[%emt 0:01:03]} Qxf3 {[%emt 0:00:21]} 10. gxf3 {[%emt 0:00:06]} Be7 {[%emt 0:00:11]} 11. Bd3 {[%emt 0:01:32]} Nd7 {[%emt 0:11:50]} 12. Rg1 {[%emt 0:10:09]} g6 {[%emt 0:02:37]} 13. Be3 {[%emt 0:02:24]} Nxe3 {[%emt 0:15:20]} 14. fxe3 {[%emt 0:00:06]} Nf6 {[%emt 0:00:05]} 15. N4g3 {[%emt 0:05:00]} b6 {[%emt 0:07:53]} 16. a4 {[%emt 0:03:23]} a5 {[%emt 0:01:52]} 17. e4 {[%emt 0:00:30]} Bb7 {[%emt 0:08:41]} 18. Kf2 {[%emt 0:08:15]} O-O-O {[%emt 0:03:12]} 19. Rgd1 {[%emt 0:03:09]} c5 {[%emt 0:04:15]} 20. Bb5 {[%emt 0:02:53]} Kc7 {[%emt 0:01:06]} 21. Nf1 {[%emt 0:00:46]} Nd7 {[%emt 0:03:36]} 22. d5 {[%emt 0:04:46]} exd5 {[%emt 0:01:11]} 23. exd5 {[%emt 0:00:08]} Ne5 {[%emt 0:01:54]} 24. c4 {[%emt 0:00:45]} Bc8 {[%emt 0:01:03]} 25. Ne3 {[%emt 0:02:27]} Bd6 {[%emt 0:01:03]} 26. Nc3 {[%emt 0:00:53]} f5 {[%emt 0:01:07]} 27. Ne2 {[%emt 0:00:47]} g5 {[%emt 0:01:21]} 28. Ng2 {[%emt 0:08:54]} f4 {[%emt 0:01:44]} 29. Nc3 {[%emt 0:00:44]} Bf5 {[%emt 0:00:28]} 30. Ba6 {[%emt 0:04:30]} Nd3+ {[%emt 0:02:23]} 31. Kg1 {[%emt 0:06:06]} Be5 {[%emt 0:01:31]} 32. Rd2 {[%emt 0:02:00]} h5 {[%emt 0:02:50]} 33. Rad1 {[%emt 0:04:38]} Nxb2 {[%emt 0:02:42]} 34. Rxb2 {[%emt 0:00:05]} Bxc3 {[%emt 0:00:07]} 35. Re2 {[%emt 0:00:25]} Bd4+ {[%emt 0:00:34]} 36. Kh1 {[%emt 0:01:19]} Rde8 {[%emt 0:00:37]} 37. Rde1 {[%emt 0:00:40]} Rxe2 {[%emt 0:00:06]} 38. Rxe2 {[%emt 0:00:04]} Kd6 {[%emt 0:00:05]} 39. h4 {[%emt 0:01:16]} g4 {[%emt 0:01:25]} 40. Nxf4 {[%emt 0:01:36]} gxf3 {[%emt 0:00:21]} 41. Re1 {[%emt 0:00:48]} f2 {[%emt 0:01:03]} 42. Rf1 {[%emt 0:01:25]} Rg8 {[%emt 0:00:10]} 0-1